{"text_format":"1","workbook":"xlsx","n_sheets":6,"sheets":["Dashboard","Ayuda y Version","pBlock","pAccel0","pAccel1","empresa_ccaa"],"not_rendered":{"charts":12,"images":7,"macros":1,"external_links":0,"defined_names":6,"comments":0,"pivot_tables":0},"unopened":[],"bounds":{"document_bytes":16777216,"sheet_cells":100000,"rows_first":2000,"rows_last":500,"rows_between":2000,"halvings":0,"cell_chars":16384,"cell_head_chars":4096},"cells_cut":0,"cells_raw":0,"read":"whole","date_system":"1900"}

{"sheet":"Dashboard","index":0,"n_rows":49,"n_cols":190,"rows_kept":49,"cut":false,"hidden":false,"merged":[]}
[]
[]
[null,null,null,null,null,null,null,null,null,null,null,null,null,null,2018]
[null,null,null,null,null,null,null,null,null,null,null,null,null,null,"MARZO",null,null,null,null,null,null,null,null,null,null,null,null,null,null,null,null,null,null,null,null,null,null,null,null,null,null,null,null,null,null,null,null,null,null,null,null,null,null,null,null,null,null,null,null,null,null,null,null,null,null,null,null,null,null,null,null,null,null,null,null,null,null,null,null,null,null,null,null,null,null,null,null,null,null,null,null,null,null,null,null,null,null,null,null,null,null,null,null,null,null,null,null,null,null,null,null,null,null,null,null,null,null,null,null,null,null,null,null,null,null,null,null,null,null,null,null,null,null,null,null,null,null,null,null,null,null,null,null,null,null,null,null,null,null,null,null,null,null,null,null,null,null,null,null,null,null,null,null,null,null,null,null,null,null,null,null,null,null,null,null,null,null,null,null,null,null,null,"Empresa - Sector","Empresa - Sector"]
[null,null,"Acumulado a:",{"$f":"O4","v":"MARZO"},null,null,"Datos acumulados",null,"Cuota Negocio / Total ASEMPLEO",null,null,{"$f":"empresa_ccaa!L5","v":"iEMPRESA"},null,"¿▲\"sin\" mi Empresa?",null,null,null,null,null,null,null,null,null,null,null,null,null,null,null,null,null,null,null,null,null,null,null,null,null,null,null,null,null,null,null,null,null,null,null,null,null,null,null,null,null,null,null,null,null,null,null,null,null,null,null,null,null,null,null,null,null,null,null,null,null,null,null,null,null,null,null,null,null,null,null,null,null,null,null,null,null,null,null,null,null,null,null,null,null,null,null,null,null,null,null,null,null,null,null,null,null,null,null,null,null,null,null,null,null,null,null,null,null,null,null,null,null,null,null,null,null,null,null,null,null,null,null,null,null,null,null,null,null,null,null,null,null,null,null,null,null,null,null,null,null,null,null,null,null,null,null,null,null,null,null,null,null,null,null,null,null,null,null,null,null,null,null,null,null,null,null,null,null,"p.p."]
[null,null,"Total","Facturación, €",null,"(a)",{"$f":"L5","v":"iEMPRESA"},null,null,null,"Cuota de Facturación","∆",null,"(b)","∆ (a-b)",null,null,null,null,null,null,null,null,null,null,null,null,null,null,null,null,null,null,null,null,null,null,null,null,null,null,null,null,null,null,null,null,null,null,null,null,null,null,null,null,null,null,null,null,null,null,null,null,null,null,null,null,null,null,null,null,null,null,null,null,null,null,null,null,null,null,null,null,null,null,null,null,null,null,null,null,null,null,null,null,null,null,null,null,null,null,null,null,null,null,null,null,null,null,null,null,null,null,null,null,null,null,null,null,null,null,null,null,null,null,null,null,null,null,null,null,null,null,null,null,null,null,null,null,null,null,null,null,null,null,null,null,null,null,null,null,null,null,null,null,null,null,null,null,null,null,null,null,null,null,null,null,null,null,null,null,null,null,null,null,null,null,null,null,null,null,null,null,"Puntos porcentuales"]
[null,null,null,2017,2018,"% i.a.",{"$f":"D7","v":2017},{"$f":"E7","v":2018},"% i.a.",{"$f":"G7","v":2017},{"$f":"H7","v":2018},"Dif.P.P.",null,"% i.a.","Dif.P.P.",null,null,null,null,null,null,null,null,null,null,null,null,null,null,null,null,null,null,null,null,null,null,null,null,null,null,null,null,null,null,null,null,null,null,null,null,null,null,null,null,null,null,null,null,null,null,null,null,null,null,null,null,null,null,null,null,null,null,null,null,null,null,null,null,null,null,null,null,null,null,null,null,null,null,null,null,null,null,null,null,null,null,null,null,null,null,null,null,null,null,null,null,null,null,null,null,null,null,null,null,null,null,null,null,null,null,null,null,null,null,null,null,null,null,null,null,null,null,null,null,null,null,null,null,null,null,null,null,null,null,null,null,null,null,null,null,null,null,null,null,null,null,null,null,null,null,null,null,null,null,null,null,null,null,null,null,null,null,null,null,null,null,null,null,null,null,null,"Dif. Ritmo","Importancia Relativa",null,null,"Empresa"]
[null,null,"Nacional",{"$f":"empresa_ccaa!F12","v":810206562.4726851},{"$f":"empresa_ccaa!G12","v":919563117.88785875},{"$f":"((E8/D8)-1)","v":0.13497367274022842},{"$f":"empresa_ccaa!K12","v":0},{"$f":"empresa_ccaa!L12","v":0},{"$f":"IF(G8>0,((H8/G8)-1),\"n.a.\")","v":"n.a."},{"$f":"G8/D8","v":0},{"$f":"H8/E8","v":0},{"$f":"(K8-J8)*100","v":0},null,{"$f":"((E8-H8)/(D8-G8))-1","v":0.13497367274022842},{"$f":"(F8-N8)*100","v":0},null,null,null,null,null,null,null,null,null,null,null,null,null,null,null,null,null,null,null,null,null,null,null,null,null,null,null,null,null,null,null,null,null,null,null,null,null,null,null,null,null,null,null,null,null,null,null,null,null,null,null,null,null,null,null,null,null,null,null,null,null,null,null,null,null,null,null,null,null,null,null,null,null,null,null,null,null,null,null,null,null,null,null,null,null,null,null,null,null,null,null,null,null,null,null,null,null,null,null,null,null,null,null,null,null,null,null,null,null,null,null,null,null,null,null,null,null,null,null,null,null,null,null,null,null,null,null,null,null,null,null,null,null,null,null,null,null,null,null,null,null,null,null,null,null,null,null,null,null,null,null,null,null,null,null,null,null,null,null,null,null,null,null,null,null,null,null,{"$f":"IF(I8=\"n.a.\",\"n.a.\",(I8-F8)*100)","v":"n.a."},{"$f":"empresa_ccaa!M12-empresa_ccaa!H12","v":{"$error":"#DIV/0!"}},null,"criterio_rank","peso","Comunidad","% i.a.","Total_Regional"]
[null,null,"ANDALUCIA",{"$f":"empresa_ccaa!F13","v":73703041.157532871},{"$f":"empresa_ccaa!G13","v":82079438.086861938},{"$f":"((E9/D9)-1)","v":0.11365062822069105},{"$f":"empresa_ccaa!K13","v":0},{"$f":"empresa_ccaa!L13","v":0},"n.a.",0,0,{"$f":"(K9-J9)*100","v":0},null,{"$f":"((E9-H9)/(D9-G9))-1","v":0.11365062822069105},0,null,null,null,null,null,null,null,null,null,null,null,null,null,null,null,null,null,null,null,null,null,null,null,null,null,null,null,null,null,null,null,null,null,null,null,null,null,null,null,null,null,null,null,null,null,null,null,null,null,null,null,null,null,null,null,null,null,null,null,null,null,null,null,null,null,null,null,null,null,null,null,null,null,null,null,null,null,null,null,null,null,null,null,null,null,null,null,null,null,null,null,null,null,null,null,null,null,null,null,null,null,null,null,null,null,null,null,null,null,null,null,null,null,null,null,null,null,null,null,null,null,null,null,null,null,null,null,null,null,null,null,null,null,null,null,null,null,null,null,null,null,null,null,null,null,null,null,null,null,null,null,null,null,null,null,null,null,null,null,null,null,null,null,null,null,null,null,"n.a.",{"$f":"empresa_ccaa!M13-empresa_ccaa!H13","v":{"$error":"#DIV/0!"}},null,{"$f":"IF(GE9=$GE$27,1,0)","v":1},{"$f":"K9","v":0},{"$f":"C9","v":"ANDALUCIA"},{"$f":"I9","v":"n.a."},{"$f":"F9","v":0.11365062822069105}]
[null,null,"ARAGON",{"$f":"empresa_ccaa!F14","v":43050366.539243318},{"$f":"empresa_ccaa!G14","v":47002766.641344488},{"$f":"((E10/D10)-1)","v":9.1808744496943762E-2},{"$f":"empresa_ccaa!K14","v":0},{"$f":"empresa_ccaa!L14","v":0},"n.a.",0,0,0,null,9.1808744496943762E-2,0,null,null,null,null,null,null,null,null,null,null,null,null,null,null,null,null,null,null,null,null,null,null,null,null,null,null,null,null,null,null,null,null,null,null,null,null,null,null,null,null,null,null,null,null,null,null,null,null,null,null,null,null,null,null,null,null,null,null,null,null,null,null,null,null,null,null,null,null,null,null,null,null,null,null,null,null,null,null,null,null,null,null,null,null,null,null,null,null,null,null,null,null,null,null,null,null,null,null,null,null,null,null,null,null,null,null,null,null,null,null,null,null,null,null,null,null,null,null,null,null,null,null,null,null,null,null,null,null,null,null,null,null,null,null,null,null,null,null,null,null,null,null,null,null,null,null,null,null,null,null,null,null,null,null,null,null,null,null,null,null,null,null,null,null,null,null,null,"n.a.",{"$f":"empresa_ccaa!M14-empresa_ccaa!H14","v":{"$error":"#DIV/0!"}},null,1,0,"ARAGON","n.a.",9.1808744496943762E-2]
[null,null,"ASTURIAS",{"$f":"empresa_ccaa!F15","v":15850859.86531364},{"$f":"empresa_ccaa!G15","v":18127358.757594503},0.14361989895970972,{"$f":"empresa_ccaa!K15","v":0},{"$f":"empresa_ccaa!L15","v":0},"n.a.",0,0,0,null,0.14361989895970972,0,null,null,null,null,null,null,null,null,null,null,null,null,null,null,null,null,null,null,null,null,null,null,null,null,null,null,null,null,null,null,null,null,null,null,null,null,null,null,null,null,null,null,null,null,null,null,null,null,null,null,null,null,null,null,null,null,null,null,null,null,null,null,null,null,null,null,null,null,null,null,null,null,null,null,null,null,null,null,null,null,null,null,null,null,null,null,null,null,null,null,null,null,null,null,null,null,null,null,null,null,null,null,null,null,null,null,null,null,null,null,null,null,null,null,null,null,null,null,null,null,null,null,null,null,null,null,null,null,null,null,null,null,null,null,null,null,null,null,null,null,null,null,null,null,null,null,null,null,null,null,null,null,null,null,null,null,null,null,null,null,null,null,null,null,null,null,null,"n.a.",{"$f":"empresa_ccaa!M15-empresa_ccaa!H15","v":{"$error":"#DIV/0!"}},null,1,0,"ASTURIAS","n.a.",0.14361989895970972]
[null,null,"BALEARES",{"$f":"empresa_ccaa!F16","v":2727610.8557856297},{"$f":"empresa_ccaa!G16","v":2926172.685195691},7.2796978714498417E-2,{"$f":"empresa_ccaa!K16","v":0},{"$f":"empresa_ccaa!L16","v":0},"n.a.",0,0,0,null,7.2796978714498417E-2,0,null,null,null,null,null,null,null,null,null,null,null,null,null,null,null,null,null,null,null,null,null,null,null,null,null,null,null,null,null,null,null,null,null,null,null,null,null,null,null,null,null,null,null,null,null,null,null,null,null,null,null,null,null,null,null,null,null,null,null,null,null,null,null,null,null,null,null,null,null,null,null,null,null,null,null,null,null,null,null,null,null,null,null,null,null,null,null,null,null,null,null,null,null,null,null,null,null,null,null,null,null,null,null,null,null,null,null,null,null,null,null,null,null,null,null,null,null,null,null,null,null,null,null,null,null,null,null,null,null,null,null,null,null,null,null,null,null,null,null,null,null,null,null,null,null,null,null,null,null,null,null,null,null,null,null,null,null,null,null,null,null,null,null,null,null,null,null,"n.a.",{"$f":"empresa_ccaa!M16-empresa_ccaa!H16","v":{"$error":"#DIV/0!"}},null,1,0,"BALEARES","n.a.",7.2796978714498417E-2]
[null,null,"CANARIAS",{"$f":"empresa_ccaa!F17","v":21667923.64012783},{"$f":"empresa_ccaa!G17","v":23094788.461387537},6.585147912452638E-2,{"$f":"empresa_ccaa!K17","v":0},{"$f":"empresa_ccaa!L17","v":0},"n.a.",0,0,0,null,6.585147912452638E-2,0,null,null,null,null,null,null,null,null,null,null,null,null,null,null,null,null,null,null,null,null,null,null,null,null,null,null,null,null,null,null,null,null,null,null,null,null,null,null,null,null,null,null,null,null,null,null,null,null,null,null,null,null,null,null,null,null,null,null,null,null,null,null,null,null,null,null,null,null,null,null,null,null,null,null,null,null,null,null,null,null,null,null,null,null,null,null,null,null,null,null,null,null,null,null,null,null,null,null,null,null,null,null,null,null,null,null,null,null,null,null,null,null,null,null,null,null,null,null,null,null,null,null,null,null,null,null,null,null,null,null,null,null,null,null,null,null,null,null,null,null,null,null,null,null,null,null,null,null,null,null,null,null,null,null,null,null,null,null,null,null,null,null,null,null,null,null,null,"n.a.",{"$f":"empresa_ccaa!M17-empresa_ccaa!H17","v":{"$error":"#DIV/0!"}},null,1,0,"CANARIAS","n.a.",6.585147912452638E-2]
[null,null,"CANTABRIA",{"$f":"empresa_ccaa!F18","v":17936159.870291799},{"$f":"empresa_ccaa!G18","v":23002530.194749225},0.28246683577174214,{"$f":"empresa_ccaa!K18","v":0},{"$f":"empresa_ccaa!L18","v":0},"n.a.",0,0,0,null,0.28246683577174214,0,null,null,null,null,null,null,null,null,null,null,null,null,null,null,null,null,null,null,null,null,null,null,null,null,null,null,null,null,null,null,null,null,null,null,null,null,null,null,null,null,null,null,null,null,null,null,null,null,null,null,null,null,null,null,null,null,null,null,null,null,null,null,null,null,null,null,null,null,null,null,null,null,null,null,null,null,null,null,null,null,null,null,null,null,null,null,null,null,null,null,null,null,null,null,null,null,null,null,null,null,null,null,null,null,null,null,null,null,null,null,null,null,null,null,null,null,null,null,null,null,null,null,null,null,null,null,null,null,null,null,null,null,null,null,null,null,null,null,null,null,null,null,null,null,null,null,null,null,null,null,null,null,null,null,null,null,null,null,null,null,null,null,null,null,null,null,null,"n.a.",{"$f":"empresa_ccaa!M18-empresa_ccaa!H18","v":{"$error":"#DIV/0!"}},null,1,0,"CANTABRIA","n.a.",0.28246683577174214]
[null,null,"CASTILLA-LA MANCHA",{"$f":"empresa_ccaa!F19","v":33666537.397980928},{"$f":"empresa_ccaa!G19","v":39736434.550371997},0.18029466709442765,{"$f":"empresa_ccaa!K19","v":0},{"$f":"empresa_ccaa!L19","v":0},"n.a.",0,0,0,null,0.18029466709442765,0,null,null,null,null,null,null,null,null,null,null,null,null,null,null,null,null,null,null,null,null,null,null,null,null,null,null,null,null,null,null,null,null,null,null,null,null,null,null,null,null,null,null,null,null,null,null,null,null,null,null,null,null,null,null,null,null,null,null,null,null,null,null,null,null,null,null,null,null,null,null,null,null,null,null,null,null,null,null,null,null,null,null,null,null,null,null,null,null,null,null,null,null,null,null,null,null,null,null,null,null,null,null,null,null,null,null,null,null,null,null,null,null,null,null,null,null,null,null,null,null,null,null,null,null,null,null,null,null,null,null,null,null,null,null,null,null,null,null,null,null,null,null,null,null,null,null,null,null,null,null,null,null,null,null,null,null,null,null,null,null,null,null,null,null,null,null,null,"n.a.",{"$f":"empresa_ccaa!M19-empresa_ccaa!H19","v":{"$error":"#DIV/0!"}},null,1,0,"CASTILLA-LA MANCHA","n.a.",0.18029466709442765]
[null,null,"CASTILLA Y LEÓN",{"$f":"empresa_ccaa!F20","v":55398421.684780538},{"$f":"empresa_ccaa!G20","v":61388629.009140022},0.1081295665505424,{"$f":"empresa_ccaa!K20","v":0},{"$f":"empresa_ccaa!L20","v":0},"n.a.",0,0,{"$f":"(K16-J16)*100","v":0},null,0.1081295665505424,0,null,null,null,null,null,null,null,null,null,null,null,null,null,null,null,null,null,null,null,null,null,null,null,null,null,null,null,null,null,null,null,null,null,null,null,null,null,null,null,null,null,null,null,null,null,null,null,null,null,null,null,null,null,null,null,null,null,null,null,null,null,null,null,null,null,null,null,null,null,null,null,null,null,null,null,null,null,null,null,null,null,null,null,null,null,null,null,null,null,null,null,null,null,null,null,null,null,null,null,null,null,null,null,null,null,null,null,null,null,null,null,null,null,null,null,null,null,null,null,null,null,null,null,null,null,null,null,null,null,null,null,null,null,null,null,null,null,null,null,null,null,null,null,null,null,null,null,null,null,null,null,null,null,null,null,null,null,null,null,null,null,null,null,null,null,null,null,"n.a.",{"$f":"empresa_ccaa!M20-empresa_ccaa!H20","v":{"$error":"#DIV/0!"}},null,1,0,"CASTILLA Y LEÓN","n.a.",0.1081295665505424]
[null,null,"CATALUÑA",{"$f":"empresa_ccaa!F21","v":200072192.9978247},{"$f":"empresa_ccaa!G21","v":239769334.29392117},0.19841408594210841,{"$f":"empresa_ccaa!K21","v":0},{"$f":"empresa_ccaa!L21","v":0},{"$f":"IF(G17>0,((H17/G17)-1),\"n.a.\")","v":"n.a."},0,0,{"$f":"(K17-J17)*100","v":0},null,0.19841408594210841,0,null,null,null,null,null,null,null,null,null,null,null,null,null,null,null,null,null,null,null,null,null,null,null,null,null,null,null,null,null,null,null,null,null,null,null,null,null,null,null,null,null,null,null,null,null,null,null,null,null,null,null,null,null,null,null,null,null,null,null,null,null,null,null,null,null,null,null,null,null,null,null,null,null,null,null,null,null,null,null,null,null,null,null,null,null,null,null,null,null,null,null,null,null,null,null,null,null,null,null,null,null,null,null,null,null,null,null,null,null,null,null,null,null,null,null,null,null,null,null,null,null,null,null,null,null,null,null,null,null,null,null,null,null,null,null,null,null,null,null,null,null,null,null,null,null,null,null,null,null,null,null,null,null,null,null,null,null,null,null,null,null,null,null,null,null,null,null,"n.a.",{"$f":"empresa_ccaa!M21-empresa_ccaa!H21","v":{"$error":"#DIV/0!"}},null,1,0,"CATALUÑA","n.a.",0.19841408594210841]
[null,null,"COMUNIDAD VALENCIANA",{"$f":"empresa_ccaa!F22","v":59554704.718785971},{"$f":"empresa_ccaa!G22","v":64506335.705490492},8.3144245447708043E-2,{"$f":"empresa_ccaa!K22","v":0},{"$f":"empresa_ccaa!L22","v":0},"n.a.",0,0,{"$f":"(K18-J18)*100","v":0},null,8.3144245447708043E-2,0,null,null,null,null,null,null,null,null,null,null,null,null,null,null,null,null,null,null,null,null,null,null,null,null,null,null,null,null,null,null,null,null,null,null,null,null,null,null,null,null,null,null,null,null,null,null,null,null,null,null,null,null,null,null,null,null,null,null,null,null,null,null,null,null,null,null,null,null,null,null,null,null,null,null,null,null,null,null,null,null,null,null,null,null,null,null,null,null,null,null,null,null,null,null,null,null,null,null,null,null,null,null,null,null,null,null,null,null,null,null,null,null,null,null,null,null,null,null,null,null,null,null,null,null,null,null,null,null,null,null,null,null,null,null,null,null,null,null,null,null,null,null,null,null,null,null,null,null,null,null,null,null,null,null,null,null,null,null,null,null,null,null,null,null,null,null,null,"n.a.",{"$f":"empresa_ccaa!M22-empresa_ccaa!H22","v":{"$error":"#DIV/0!"}},null,1,0,"COMUNIDAD VALENCIANA","n.a.",8.3144245447708043E-2]
[null,null,"EXTREMADURA",{"$f":"empresa_ccaa!F23","v":3632274.4514040966},{"$f":"empresa_ccaa!G23","v":5177191.3496506251},0.42533044210063031,{"$f":"empresa_ccaa!K23","v":0},{"$f":"empresa_ccaa!L23","v":0},"n.a.",0,0,0,null,0.42533044210063031,0,null,null,null,null,null,null,null,null,null,null,null,null,null,null,null,null,null,null,null,null,null,null,null,null,null,null,null,null,null,null,null,null,null,null,null,null,null,null,null,null,null,null,null,null,null,null,null,null,null,null,null,null,null,null,null,null,null,null,null,null,null,null,null,null,null,null,null,null,null,null,null,null,null,null,null,null,null,null,null,null,null,null,null,null,null,null,null,null,null,null,null,null,null,null,null,null,null,null,null,null,null,null,null,null,null,null,null,null,null,null,null,null,null,null,null,null,null,null,null,null,null,null,null,null,null,null,null,null,null,null,null,null,null,null,null,null,null,null,null,null,null,null,null,null,null,null,null,null,null,null,null,null,null,null,null,null,null,null,null,null,null,null,null,null,null,null,null,"n.a.",{"$f":"empresa_ccaa!M23-empresa_ccaa!H23","v":{"$error":"#DIV/0!"}},null,1,0,"EXTREMADURA","n.a.",0.42533044210063031]
[null,null,"GALICIA",{"$f":"empresa_ccaa!F24","v":40383491.845766649},{"$f":"empresa_ccaa!G24","v":48058215.389376163},0.19004606072503472,{"$f":"empresa_ccaa!K24","v":0},{"$f":"empresa_ccaa!L24","v":0},"n.a.",0,0,0,null,0.19004606072503472,0,null,null,null,null,null,null,null,null,null,null,null,null,null,null,null,null,null,null,null,null,null,null,null,null,null,null,null,null,null,null,null,null,null,null,null,null,null,null,null,null,null,null,null,null,null,null,null,null,null,null,null,null,null,null,null,null,null,null,null,null,null,null,null,null,null,null,null,null,null,null,null,null,null,null,null,null,null,null,null,null,null,null,null,null,null,null,null,null,null,null,null,null,null,null,null,null,null,null,null,null,null,null,null,null,null,null,null,null,null,null,null,null,null,null,null,null,null,null,null,null,null,null,null,null,null,null,null,null,null,null,null,null,null,null,null,null,null,null,null,null,null,null,null,null,null,null,null,null,null,null,null,null,null,null,null,null,null,null,null,null,null,null,null,null,null,null,null,"n.a.",{"$f":"empresa_ccaa!M24-empresa_ccaa!H24","v":{"$error":"#DIV/0!"}},null,1,0,"GALICIA","n.a.",0.19004606072503472]
[null,null,"MADRID",{"$f":"empresa_ccaa!F25","v":130062994.25372514},{"$f":"empresa_ccaa!G25","v":140826986.69943872},8.2759838857125789E-2,{"$f":"empresa_ccaa!K25","v":0},{"$f":"empresa_ccaa!L25","v":0},"n.a.",0,0,0,null,8.2759838857125789E-2,0,null,null,null,null,null,null,null,null,null,null,null,null,null,null,null,null,null,null,null,null,null,null,null,null,null,null,null,null,null,null,null,null,null,null,null,null,null,null,null,null,null,null,null,null,null,null,null,null,null,null,null,null,null,null,null,null,null,null,null,null,null,null,null,null,null,null,null,null,null,null,null,null,null,null,null,null,null,null,null,null,null,null,null,null,null,null,null,null,null,null,null,null,null,null,null,null,null,null,null,null,null,null,null,null,null,null,null,null,null,null,null,null,null,null,null,null,null,null,null,null,null,null,null,null,null,null,null,null,null,null,null,null,null,null,null,null,null,null,null,null,null,null,null,null,null,null,null,null,null,null,null,null,null,null,null,null,null,null,null,null,null,null,null,null,null,null,null,"n.a.",{"$f":"empresa_ccaa!M25-empresa_ccaa!H25","v":{"$error":"#DIV/0!"}},null,1,0,"MADRID","n.a.",8.2759838857125789E-2]
[null,null,"MURCIA",{"$f":"empresa_ccaa!F26","v":34701062.196864881},{"$f":"empresa_ccaa!G26","v":38783674.030841887},0.11765091831528585,{"$f":"empresa_ccaa!K26","v":0},{"$f":"empresa_ccaa!L26","v":0},"n.a.",0,0,0,null,0.11765091831528585,0,null,null,null,null,null,null,null,null,null,null,null,null,null,null,null,null,null,null,null,null,null,null,null,null,null,null,null,null,null,null,null,null,null,null,null,null,null,null,null,null,null,null,null,null,null,null,null,null,null,null,null,null,null,null,null,null,null,null,null,null,null,null,null,null,null,null,null,null,null,null,null,null,null,null,null,null,null,null,null,null,null,null,null,null,null,null,null,null,null,null,null,null,null,null,null,null,null,null,null,null,null,null,null,null,null,null,null,null,null,null,null,null,null,null,null,null,null,null,null,null,null,null,null,null,null,null,null,null,null,null,null,null,null,null,null,null,null,null,null,null,null,null,null,null,null,null,null,null,null,null,null,null,null,null,null,null,null,null,null,null,null,null,null,null,null,null,null,"n.a.",{"$f":"empresa_ccaa!M26-empresa_ccaa!H26","v":{"$error":"#DIV/0!"}},null,1,0,"MURCIA","n.a.",0.11765091831528585]
[null,null,"NAVARRA",{"$f":"empresa_ccaa!F27","v":26394941.844074644},{"$f":"empresa_ccaa!G27","v":33431799.616374787},0.26659872235633797,{"$f":"empresa_ccaa!K27","v":0},{"$f":"empresa_ccaa!L27","v":0},"n.a.",0,0,0,null,0.26659872235633797,0,null,null,null,null,null,null,null,null,null,null,null,null,null,null,null,null,null,null,null,null,null,null,null,null,null,null,null,null,null,null,null,null,null,null,null,null,null,null,null,null,null,null,null,null,null,null,null,null,null,null,null,null,null,null,null,null,null,null,null,null,null,null,null,null,null,null,null,null,null,null,null,null,null,null,null,null,null,null,null,null,null,null,null,null,null,null,null,null,null,null,null,null,null,null,null,null,null,null,null,null,null,null,null,null,null,null,null,null,null,null,null,null,null,null,null,null,null,null,null,null,null,null,null,null,null,null,null,null,null,null,null,null,null,null,null,null,null,null,null,null,null,null,null,null,null,null,null,null,null,null,null,null,null,null,null,null,null,null,null,null,null,null,null,null,null,null,null,"n.a.",{"$f":"empresa_ccaa!M27-empresa_ccaa!H27","v":{"$error":"#DIV/0!"}},null,1,0,"NAVARRA","n.a.",0.26659872235633797]
[null,null,"PAIS VASCO",{"$f":"empresa_ccaa!F28","v":44159141.312292814},{"$f":"empresa_ccaa!G28","v":44816567.855428606},1.4887665919191662E-2,{"$f":"empresa_ccaa!K28","v":0},{"$f":"empresa_ccaa!L28","v":0},"n.a.",0,0,0,null,1.4887665919191662E-2,0,null,null,null,null,null,null,null,null,null,null,null,null,null,null,null,null,null,null,null,null,null,null,null,null,null,null,null,null,null,null,null,null,null,null,null,null,null,null,null,null,null,null,null,null,null,null,null,null,null,null,null,null,null,null,null,null,null,null,null,null,null,null,null,null,null,null,null,null,null,null,null,null,null,null,null,null,null,null,null,null,null,null,null,null,null,null,null,null,null,null,null,null,null,null,null,null,null,null,null,null,null,null,null,null,null,null,null,null,null,null,null,null,null,null,null,null,null,null,null,null,null,null,null,null,null,null,null,null,null,null,null,null,null,null,null,null,null,null,null,null,null,null,null,null,null,null,null,null,null,null,null,null,null,null,null,null,null,null,null,null,null,null,null,null,null,null,null,"n.a.",{"$f":"empresa_ccaa!M28-empresa_ccaa!H28","v":{"$error":"#DIV/0!"}},null,1,0,"PAIS VASCO","n.a.",1.4887665919191662E-2]
[null,null,"RIOJA (LA)",{"$f":"empresa_ccaa!F29","v":7244837.8408897454},{"$f":"empresa_ccaa!G29","v":6834894.5606911071},-5.6584189902074145E-2,{"$f":"empresa_ccaa!K29","v":0},{"$f":"empresa_ccaa!L29","v":0},"n.a.",0,0,0,null,-5.6584189902074145E-2,0,null,null,null,null,null,null,null,null,null,null,null,null,null,null,null,null,null,null,null,null,null,null,null,null,null,null,null,null,null,null,null,null,null,null,null,null,null,null,null,null,null,null,null,null,null,null,null,null,null,null,null,null,null,null,null,null,null,null,null,null,null,null,null,null,null,null,null,null,null,null,null,null,null,null,null,null,null,null,null,null,null,null,null,null,null,null,null,null,null,null,null,null,null,null,null,null,null,null,null,null,null,null,null,null,null,null,null,null,null,null,null,null,null,null,null,null,null,null,null,null,null,null,null,null,null,null,null,null,null,null,null,null,null,null,null,null,null,null,null,null,null,null,null,null,null,null,null,null,null,null,null,null,null,null,null,null,null,null,null,null,null,null,null,null,null,null,null,"n.a.",{"$f":"empresa_ccaa!M29-empresa_ccaa!H29","v":{"$error":"#DIV/0!"}},null,1,0,"RIOJA (LA)","n.a.",-5.6584189902074145E-2]
[null,null,null,null,null,null,null,null,null,null,null,null,null,null,null,null,null,null,null,null,null,null,null,null,null,null,null,null,null,null,null,null,null,null,null,null,null,null,null,null,null,null,null,null,null,null,null,null,null,null,null,null,null,null,null,null,null,null,null,null,null,null,null,null,null,null,null,null,null,null,null,null,null,null,null,null,null,null,null,null,null,null,null,null,null,null,null,null,null,null,null,null,null,null,null,null,null,null,null,null,null,null,null,null,null,null,null,null,null,null,null,null,null,null,null,null,null,null,null,null,null,null,null,null,null,null,null,null,null,null,null,null,null,null,null,null,null,null,null,null,null,null,null,null,null,null,null,null,null,null,null,null,null,null,null,null,null,null,null,null,null,null,null,null,null,null,null,null,null,null,null,null,null,null,null,null,null,null,null,null,null,null,null,null,null,"codifico=1","máximo"]
[null,null,null,null,null,null,null,null,null,null,null,null,null,null,null,null,null,null,null,null,null,null,null,null,null,null,null,null,null,null,null,null,null,null,null,null,null,null,null,null,null,null,null,null,null,null,null,null,null,null,null,null,null,null,null,null,null,null,null,null,null,null,null,null,null,null,null,null,null,null,null,null,null,null,null,null,null,null,null,null,null,null,null,null,null,null,null,null,null,null,null,null,null,null,null,null,null,null,null,null,null,null,null,null,null,null,null,null,null,null,null,null,null,null,null,null,null,null,null,null,null,null,null,null,null,null,null,null,null,null,null,null,null,null,null,null,null,null,null,null,null,null,null,null,null,null,null,null,null,null,null,null,null,null,null,null,null,null,null,null,null,null,null,null,null,null,null,null,null,null,null,null,null,null,null,null,null,null,null,null,null,null,null,null,null,{"$f":"DMAX(GD8:GF25,GE8,GD8:GD25)*1","v":0},{"$f":"MAX(GE9:GE25)","v":0}]
[null,null,null,null,null,null,null,null,null,null,null,{"$f":"K6","v":"Cuota de Facturación"},null,null,null,null,null,null,null,null,null,null,null,null,null,null,null,null,null,null,null,null,null,null,null,null,null,null,null,null,null,null,null,null,null,null,null,null,null,null,null,null,null,null,null,null,null,null,null,null,null,null,null,null,null,null,null,null,null,null,null,null,null,null,null,null,null,null,null,null,null,null,null,null,null,null,null,null,null,null,null,null,null,null,null,null,null,null,null,null,null,null,null,null,null,null,null,null,null,null,null,null,null,null,null,null,null,null,null,null,null,null,null,null,null,null,null,null,null,null,null,null,null,null,null,null,null,null,null,null,null,null,null,null,null,null,null,null,null,null,null,null,null,null,null,null,null,null,null,null,null,null,null,null,null,null,null,null,null,null,null,null,null,null,null,null,null,null,null,null,null,null,null,null,"geo data",{"$f":"VLOOKUP(1,GD8:GH25,3,0)","v":"ANDALUCIA"}]
[null,null,null,null,null,null,null,null,null,null,null,null,null,null,{"$f":"K7","v":2018},null,null,null,null,null,null,null,null,null,null,null,null,null,null,null,null,null,null,null,null,null,null,null,null,null,null,null,null,null,null,null,null,null,null,null,null,null,null,null,null,null,null,null,null,null,null,null,null,null,null,null,null,null,null,null,null,null,null,null,null,null,null,null,null,null,null,null,null,null,null,null,null,null,null,null,null,null,null,null,null,null,null,null,null,null,null,null,null,null,null,null,null,null,null,null,null,null,null,null,null,null,null,null,null,null,null,null,null,null,null,null,null,null,null,null,null,null,null,null,null,null,null,null,null,null,null,null,null,null,null,null,null,null,null,null,null,null,null,null,null,null,null,null,null,null,null,null,null,null,null,null,null,null,null,null,null,null,null,null,null,null,null,null,null,null,null,null,null,null,null,"el dato a buscar debe estar en la primera columna. "]
[null,null,null,"% i.a.",null,null,null,"% i.a.",null,null,null,null,null,null,null,null,null,null,null,null,null,null,null,null,null,null,null,null,null,null,null,null,null,null,null,null,null,null,null,null,null,null,null,null,null,null,null,null,null,null,null,null,null,null,null,null,null,null,null,null,null,null,null,null,null,null,null,null,null,null,null,null,null,null,null,null,null,null,null,null,null,null,null,null,null,null,null,null,null,null,null,null,null,null,null,null,null,null,null,null,null,null,null,null,null,null,null,null,null,null,null,null,null,null,null,null,null,null,null,null,null,null,null,null,null,null,null,null,null,null,null,null,null,null,null,null,null,null,null,null,null,null,null,null,null,null,null,null,null,null,null,null,null,null,null,null,null,null,null,null,null,null,null,null,null,null,null,null,null,null,null,null,null,null,null,null,null,null,null,null,null,null,null,null,null,{"$f":"VLOOKUP(1,GD8:GH25,4,0)*1","v":{"$error":"#VALUE!"}}]
[null,null,null,2017,null,null,null,2017,null,null,null,null,null,null,null,null,null,null,null,null,null,null,null,null,null,null,null,null,null,null,null,null,null,null,null,null,null,null,null,null,null,null,null,null,null,null,null,null,null,null,null,null,null,null,null,null,null,null,null,null,null,null,null,null,null,null,null,null,null,null,null,null,null,null,null,null,null,null,null,null,null,null,null,null,null,null,null,null,null,null,null,null,null,null,null,null,null,null,null,null,null,null,null,null,null,null,null,null,null,null,null,null,null,null,null,null,null,null,null,null,null,null,null,null,null,null,null,null,null,null,null,null,null,null,null,null,null,null,null,null,null,null,null,null,null,null,null,null,null,null,null,null,null,null,null,null,null,null,null,null,null,null,null,null,null,null,null,null,null,null,null,null,null,null,null,null,null,null,null,null,null,null,null,null,null,{"$f":"VLOOKUP(1,GD8:GH25,5,0)*1","v":0.11365062822069105}]
[null,null,null,"Total",null,null,null,"Empresa",null,null,null,{"$f":"L5","v":"iEMPRESA"}]
[null,null,null,null,null,null,null,null,null,null,null,null,null,null,"Ámbito"]
[null,null,"Ámbito",{"$f":"H34","v":"Nacional"},null,null,null,{"$f":"L34","v":"Nacional"},null,null,null,"Nacional",null,null,"Nacional"]
[]
[]
[]
[null,null,null,null,null,null,null,null,null,null,null,{"$f":"GD28","v":"ANDALUCIA"},null,null,"CCAA"]
[null,null,null,null,null,null,null,null,null,null,null,null,null,null,"Líder para la"]
[null,null,null,"% i.a.",null,null,null,"% i.a.",null,null,null,null,null,null,"Empresa"]
[null,null,null,2017,null,null,null,2017]
[null,null,null,"Total",null,null,null,"Empresa",null,null,null,{"$f":"L32","v":"iEMPRESA"}]
[]
[null,null,"Ámbito",{"$f":"H44","v":"ANDALUCIA"},null,null,null,{"$f":"L44","v":"ANDALUCIA"},null,null,null,{"$f":"L38","v":"ANDALUCIA"}]
[]
[]
[]
[null,null,"Fuente: Cifras consolidadas del sector. Valores absolutos 2015-2018 y cifras de evolución de 2016 a la fecha. ASEMPLEO ©."]
[null,null,"Nota de Confidencialidad: Este informe comparativo contiene datos redondeados que son ficticeos y serán reemplazados por los que la Empresa introduzca en \"empresa_ccaa\"."]

{"sheet":"Ayuda y Version","index":1,"n_rows":2,"n_cols":8,"rows_kept":2,"cut":false,"hidden":true,"merged":[]}
[]
[null,null,null,null,null,null,"Versión de plantilla:",2.5]

{"sheet":"pBlock","index":2,"n_rows":5,"n_cols":3,"rows_kept":5,"cut":false,"hidden":true,"merged":[]}
[]
[]
[]
[null,"Block Test"]
[null,"Info1","Info2"]

{"sheet":"pAccel0","index":3,"n_rows":30,"n_cols":42,"rows_kept":30,"cut":false,"hidden":true,"merged":[]}
["Gauge Configuration",null,null,null,null,null,null,null,null,null,null,null,null,null,"Gauge Configuration",null,null,null,null,null,null,null,null,null,null,"Gauge Configuration",null,null,null,null,null,null,null,null,null,null,"Gauge Configuration"]
[null,null,null,null,null,"Decal",null,null,null,null,null,null,null,null,null,null,null,null,null,"Decal",null,null,null,null,null,null,null,null,null,null,"Decal",null,null,null,null,null,null,null,null,null,null,"Decal"]
["Title:",{"$f":"Dashboard!#REF!","v":{"$error":"#REF!"}},null,null,null,0,null,null,null,null,null,null,null,null,"Title:",{"$f":"pAccel0!B3","v":{"$error":"#REF!"}},null,null,null,0,null,null,null,null,null,"Title:","Empresa",null,null,null,0,null,null,null,null,null,"Title:","CCAA",null,null,null,0]
["Real Value:",{"$f":"Dashboard!#REF!","v":{"$error":"#REF!"}},null,null,null,null,null,null,null,null,null,null,null,null,"Real Value:",{"$f":"Dashboard!K8","v":0},null,null,null,null,null,null,null,null,null,"Real Value:",{"$f":"Dashboard!K8","v":0},null,null,null,null,null,null,null,null,null,"Real Value:",{"$f":"Dashboard!GD27","v":0}]
[]
["Color bands",null,null,null,null,null,null,null,null,null,null,null,null,null,"Color bands",null,null,null,null,null,null,null,null,null,null,"Color bands",null,null,null,null,null,null,null,null,null,null,"Color bands"]
["Red:",2,null,null,null,null,null,null,null,null,null,null,null,null,"Red:",2,null,null,null,null,null,null,null,null,null,"Red:",2,null,null,null,null,null,null,null,null,null,"Red:",2]
["Yellow:",15,null,null,null,null,null,null,null,null,null,null,null,null,"Yellow:",15,null,null,null,null,null,null,null,null,null,"Yellow:",15,null,null,null,null,null,null,null,null,null,"Yellow:",15]
["Green:",23,null,null,null,null,null,null,null,null,null,null,null,null,"Green:",23,null,null,null,null,null,null,null,null,null,"Green:",23,null,null,null,null,null,null,null,null,null,"Green:",23]
[]
["Advanced Parameters",null,null,null,null,null,null,null,null,null,null,null,null,null,"Advanced Parameters",null,null,null,null,null,null,null,null,null,null,"Advanced Parameters",null,null,null,null,null,null,null,null,null,null,"Advanced Parameters"]
[null,"Value to 100%",{"$f":"IF(ISERROR((B4-F3/100)*B27),0,(B4-F3/100)*B27)","v":0},null,null,null,null,null,null,null,null,null,null,null,null,"Value to 100%",{"$f":"IF(ISERROR((P4-T3/100)*P27),0,(P4-T3/100)*P27)","v":0},null,null,null,null,null,null,null,null,null,"Value to 100%",{"$f":"IF(ISERROR((AA4-AE3/100)*AA27),0,(AA4-AE3/100)*AA27)","v":0},null,null,null,null,null,null,null,null,null,"Value to 100%",{"$f":"IF(ISERROR((AL4-AP3/100)*AL27),0,(AL4-AP3/100)*AL27)","v":0}]
[null,"Relative value",{"$f":"IF(C12>100%,102%,IF(C12<0%,-2%,C12))*1.506-0.253","v":-0.253},null,null,null,null,null,null,null,null,null,null,null,null,"Relative value",{"$f":"IF(Q12>100%,102%,IF(Q12<0%,-2%,Q12))*1.506-0.253","v":-0.253},null,null,null,null,null,null,null,null,null,"Relative value",{"$f":"IF(AB12>100%,102%,IF(AB12<0%,-2%,AB12))*1.506-0.253","v":-0.253},null,null,null,null,null,null,null,null,null,"Relative value",{"$f":"IF(AM12>100%,102%,IF(AM12<0%,-2%,AM12))*1.506-0.253","v":-0.253}]
[]
["Angle",null,{"$f":"C13*PI()","v":-0.79482294135821763},null,null,null,null,null,null,null,null,null,null,null,"Angle",null,{"$f":"Q13*PI()","v":-0.79482294135821763},null,null,null,null,null,null,null,null,"Angle",null,{"$f":"AB13*PI()","v":-0.79482294135821763},null,null,null,null,null,null,null,null,"Angle",null,{"$f":"AM13*PI()","v":-0.79482294135821763}]
["x",0,{"$f":"-COS(C15)","v":-0.70041115078380645},null,null,null,null,null,null,null,null,null,null,null,"x",0,{"$f":"-COS(Q15)","v":-0.70041115078380645},null,null,null,null,null,null,null,null,"x",0,{"$f":"-COS(AB15)","v":-0.70041115078380645},null,null,null,null,null,null,null,null,"x",0,{"$f":"-COS(AM15)","v":-0.70041115078380645}]
["y",0,{"$f":"SIN(C15)","v":-0.7137396022764213},null,null,null,null,null,null,null,null,null,null,null,"y",0,{"$f":"SIN(Q15)","v":-0.7137396022764213},null,null,null,null,null,null,null,null,"y",0,{"$f":"SIN(AB15)","v":-0.7137396022764213},null,null,null,null,null,null,null,null,"y",0,{"$f":"SIN(AM15)","v":-0.7137396022764213}]
[]
[null,null,null,"Value","Label",null,null,null,null,null,null,null,null,null,null,null,null,"Value","Label",null,null,null,null,null,null,null,null,null,"Value","Label",null,null,null,null,null,null,null,null,null,"Value","Label"]
[null,null,70,10,{"$f":"B26+F3","v":4},null,null,null,null,null,null,null,null,null,null,null,70,10,{"$f":"P26+T3","v":4},null,null,null,null,null,null,null,null,70,10,{"$f":"AA26+AE3","v":4},null,null,null,null,null,null,null,null,70,10,{"$f":"AL26+AP3","v":4}]
[null,null,{"$f":"B7*$C$20/$B$25","v":3.5},10,{"$f":"E20+$B$26","v":8},null,null,null,null,null,null,null,null,null,null,null,{"$f":"P7*$C$20/$B$25","v":3.5},10,{"$f":"S20+$B$26","v":8},null,null,null,null,null,null,null,null,{"$f":"AA7*$AB$20/$AA$25","v":3.5},10,{"$f":"AD20+$AA$26","v":8},null,null,null,null,null,null,null,null,{"$f":"AL7*$AM$20/$AL$25","v":3.5},10,{"$f":"AO20+$AL$26","v":8}]
[null,null,{"$f":"B8*$C$20/$B$25","v":26.25},10,12,null,null,null,null,null,null,null,null,null,null,null,{"$f":"P8*$C$20/$B$25","v":26.25},10,12,null,null,null,null,null,null,null,null,{"$f":"AA8*$AB$20/$AA$25","v":26.25},10,12,null,null,null,null,null,null,null,null,{"$f":"AL8*$AM$20/$AL$25","v":26.25},10,{"$f":"AO21+$AL$26","v":12}]
[null,null,{"$f":"B9*$C$20/$B$25","v":40.25},10,16,null,null,null,null,null,null,null,null,null,null,null,{"$f":"P9*$C$20/$B$25","v":40.25},10,16,null,null,null,null,null,null,null,null,{"$f":"AA9*$AB$20/$AA$25","v":40.25},10,16,null,null,null,null,null,null,null,null,40.25,10,16]
["White",null,23,10,20,null,null,null,null,null,null,null,null,null,"White",null,23,10,20,null,null,null,null,null,null,"White",null,23,10,20,null,null,null,null,null,null,"White",null,23,10,20]
["Total",{"$f":"SUM(B7:B24)","v":40},{"$f":"SUM(C21:C24)","v":93},10,24,null,null,null,null,null,null,null,null,null,"Total",{"$f":"SUM(P7:P24)","v":40},{"$f":"SUM(Q21:Q24)","v":93},10,24,null,null,null,null,null,null,"Total",{"$f":"SUM(AA7:AA24)","v":40},{"$f":"SUM(AB21:AB24)","v":93},10,24,null,null,null,null,null,null,"Total",{"$f":"SUM(AL7:AL24)","v":40},{"$f":"SUM(AM21:AM24)","v":93},10,24]
["Increment",{"$f":"B25/10","v":4},null,10,28,null,null,null,null,null,null,null,null,null,"Increment",{"$f":"P25/10","v":4},null,10,28,null,null,null,null,null,null,"Increment",{"$f":"AA25/10","v":4},null,10,28,null,null,null,null,null,null,"Increment",{"$f":"AL25/10","v":4},null,10,28]
["Conversion",{"$f":"100/B25","v":2.5},null,10,32,null,null,null,null,null,null,null,null,null,"Conversion",{"$f":"100/P25","v":2.5},null,10,32,null,null,null,null,null,null,"Conversion",{"$f":"100/AA25","v":2.5},null,10,32,null,null,null,null,null,null,"Conversion",{"$f":"100/AL25","v":2.5},null,10,32]
[null,null,null,10,36,null,null,null,null,null,null,null,null,null,null,null,null,10,36,null,null,null,null,null,null,null,null,null,10,36,null,null,null,null,null,null,null,null,null,10,36]
[null,null,null,10,40,null,null,null,null,null,null,null,null,null,null,null,null,10,40,null,null,null,null,null,null,null,null,null,10,40,null,null,null,null,null,null,null,null,null,10,40]
[null,null,null,33,{"$f":"F3","v":0},null,null,null,null,null,null,null,null,null,null,null,null,33,{"$f":"T3","v":0},null,null,null,null,null,null,null,null,null,33,{"$f":"AE3","v":0},null,null,null,null,null,null,null,null,null,33,{"$f":"AP3","v":0}]

{"sheet":"pAccel1","index":4,"n_rows":35,"n_cols":64,"rows_kept":35,"cut":false,"hidden":true,"merged":[]}
["Gauge Configuration",null,null,null,null,null,null,null,null,null,null,null,null,null,null,null,"Gauge Configuration",null,null,null,null,null,null,"Gauge Configuration",null,null,null,null,null,null,"Gauge Configuration",null,null,null,null,null,null,"Gauge Configuration",null,null,null,null,null,null,"Gauge Configuration",null,null,null,null,null,null,"Gauge Configuration",null,null,null,null,null,null,"Gauge Configuration"]
[null,null,null,null,null,"Decal",null,null,null,null,null,null,null,null,null,null,null,null,null,null,null,"Decal",null,null,null,null,null,null,"Decal",null,null,null,null,null,null,"Decal",null,null,null,null,null,null,"Decal",null,null,null,null,null,null,"Decal",null,null,null,null,null,null,"Decal",null,null,null,null,null,null,"Decal"]
["Title:","CPDs",null,null,null,100,null,null,null,null,null,null,null,null,null,null,"Title:","Facturación",null,null,null,100,null,"Title:","CPDs",null,null,null,100,null,"Title:","Facturación",null,null,null,100,null,"Title:","Facturación",null,null,null,100,null,"Title:","Facturación",null,null,null,100,null,"Title:","Facturación",null,null,null,100,null,"Title:","Facturación",null,null,null,100]
["Real Value:",{"$f":"Dashboard!#REF!","v":{"$error":"#REF!"}},{"$f":"Dashboard!#REF!","v":{"$error":"#REF!"}},null,null,null,null,null,null,null,null,null,null,null,null,null,"Real Value:",{"$f":"Dashboard!#REF!","v":{"$error":"#REF!"}},null,null,null,null,null,"Real Value:",{"$f":"Dashboard!#REF!","v":{"$error":"#REF!"}},null,null,null,null,null,"Real Value:",{"$f":"Dashboard!#REF!","v":{"$error":"#REF!"}},null,null,null,null,null,"Real Value:",{"$f":"Dashboard!F8","v":0.13497367274022842},null,null,null,null,null,"Real Value:",{"$f":"Dashboard!$I$8","v":"n.a."},null,null,null,null,null,"Real Value:",{"$f":"Dashboard!GD31","v":0.11365062822069105},null,null,null,null,null,"Real Value:",{"$f":"Dashboard!GD30","v":{"$error":"#VALUE!"}}]
[]
["Color bands"]
["Red:",-50]
["Yellow:",0]
["Green:",50]
[]
["Advanced Parameters",null,null,null,null,null,null,null,null,null,null,null,null,null,null,null,"Advanced Parameters",null,null,null,null,null,null,"Advanced Parameters",null,null,null,null,null,null,"Advanced Parameters",null,null,null,null,null,null,"Advanced Parameters",null,null,null,null,null,null,"Advanced Parameters",null,null,null,null,null,null,"Advanced Parameters",null,null,null,null,null,null,"Advanced Parameters"]
[null,"Value to 100%",{"$f":"IF(ISERROR((B4-F3/100)*B27),0,(B4-F3/100)*B27)","v":0},null,{"$f":"IF(ISERROR((C4-F3/100)*B27),0,(C4-F3/100)*B27)","v":0},null,null,null,null,null,null,null,null,null,null,null,null,"Value to 100%",{"$f":"IF(ISERROR((R4-V3/100)*R27),0,(R4-V3/100)*R27)","v":0},null,null,null,null,null,"Value to 100%",{"$f":"IF(ISERROR((Y4-AC3/100)*Y27),0,(Y4-AC3/100)*Y27)","v":0},null,null,null,null,null,"Value to 100%",{"$f":"IF(ISERROR((AF4-AJ3/100)*AF27),0,(AF4-AJ3/100)*AF27)","v":0},null,null,null,null,null,"Value to 100%",{"$f":"IF(ISERROR((AM4-AQ3/100)*AM27),0,(AM4-AQ3/100)*AM27)","v":-1.7300526545195432},null,null,null,null,null,"Value to 100%",{"$f":"IF(ISERROR((AT4-AX3/100)*AT27),0,(AT4-AX3/100)*AT27)","v":0},null,null,null,null,null,"Value to 100%",{"$f":"IF(ISERROR((BA4-BE3/100)*BA27),0,(BA4-BE3/100)*BA27)","v":-1.7726987435586179},null,null,null,null,null,"Value to 100%",{"$f":"IF(ISERROR((BH4-BL3/100)*BH27),0,(BH4-BL3/100)*BH27)","v":0}]
[null,"Relative value",{"$f":"IF(B4<-100%,-100%,IF(B4>100%,100%,2*B4/1))","v":{"$error":"#REF!"}},"ojo1, todo en porcentaje, por 2, y con 1 al final en lugar de 100.",{"$f":"IF(C4<-100%,-100%,IF(C4>100%,100%,2*C4/1))","v":{"$error":"#REF!"}},null,null,null,"Todos los negritas tienen dato 50, en lugar de 100 para que la escala recorra menos. ",null,null,null,null,null,null,null,null,"Relative value",{"$f":"IF(R4<-100%,-100%,IF(R4>100%,100%,2*R4/1))","v":{"$error":"#REF!"}},null,null,null,null,null,"Relative value",{"$f":"IF(Y4<-100%,-100%,IF(Y4>100%,100%,2*Y4/1))","v":{"$error":"#REF!"}},null,null,null,null,null,"Relative value",{"$f":"IF(AF4<-100%,-100%,IF(AF4>100%,100%,2*AF4/1))","v":{"$error":"#REF!"}},null,null,null,null,null,"Relative value",{"$f":"IF(AM4<-100%,-100%,IF(AM4>100%,100%,2*AM4/1))","v":0.26994734548045685},null,null,null,null,null,"Relative value",{"$f":"IF(AT4<-100%,-100%,IF(AT4>100%,100%,2*AT4/1))","v":1},null,null,null,null,null,"Relative value",{"$f":"IF(BA4<-100%,-100%,IF(BA4>100%,100%,2*BA4/1))","v":0.2273012564413821},null,null,null,null,null,"Relative value",{"$f":"IF(BH4<-100%,-100%,IF(BH4>100%,100%,2*BH4/1))","v":{"$error":"#VALUE!"}}]
[]
["Angle",null,{"$f":"C13*PI()/2","v":{"$error":"#REF!"}},null,{"$f":"E13*PI()/2","v":{"$error":"#REF!"}},null,null,null,null,null,null,null,null,null,null,null,"Angle",null,{"$f":"S13*PI()/2","v":{"$error":"#REF!"}},null,null,null,null,"Angle",null,{"$f":"Z13*PI()/2","v":{"$error":"#REF!"}},null,null,null,null,"Angle",null,{"$f":"AG13*PI()/2","v":{"$error":"#REF!"}},null,null,null,null,"Angle",null,{"$f":"AN13*PI()/2","v":0.42403229870873455},null,null,null,null,"Angle",null,{"$f":"AU13*PI()/2","v":1.5707963267948966},null,null,null,null,"Angle",null,{"$f":"BB13*PI()/2","v":0.35704397869398785},null,null,null,null,"Angle",null,{"$f":"BI13*PI()/2","v":{"$error":"#VALUE!"}}]
["x",0,{"$f":"SIN(C15)","v":{"$error":"#REF!"}},{"$f":"B16","v":0},{"$f":"SIN(E15)","v":{"$error":"#REF!"}},null,null,null,null,null,null,null,null,null,null,null,"x",0,{"$f":"SIN(S15)","v":{"$error":"#REF!"}},null,null,null,null,"x",0,{"$f":"SIN(Z15)","v":{"$error":"#REF!"}},null,null,null,null,"x",0,{"$f":"SIN(AG15)","v":{"$error":"#REF!"}},null,null,null,null,"x",0,{"$f":"SIN(AN15)","v":0.41143897546473462},null,null,null,null,"x",0,{"$f":"SIN(AU15)","v":1},null,null,null,null,"x",0,{"$f":"SIN(BB15)","v":0.34950616725716876},null,null,null,null,"x",0,{"$f":"SIN(BI15)","v":{"$error":"#VALUE!"}}]
["y",0,{"$f":"-COS(C15)","v":{"$error":"#REF!"}},{"$f":"B17","v":0},{"$f":"-COS(E15)","v":{"$error":"#REF!"}},null,null,null,null,null,null,null,null,null,null,null,"y",0,{"$f":"-COS(S15)","v":{"$error":"#REF!"}},null,null,null,null,"y",0,{"$f":"-COS(Z15)","v":{"$error":"#REF!"}},null,null,null,null,"y",0,{"$f":"-COS(AG15)","v":{"$error":"#REF!"}},null,null,null,null,"y",0,{"$f":"-COS(AN15)","v":-0.91143730967550884},null,null,null,null,"y",0,{"$f":"-COS(AU15)","v":-6.1257422745431001E-17},null,null,null,null,"y",0,{"$f":"-COS(BB15)","v":-0.93693406334128126},null,null,null,null,"y",0,{"$f":"-COS(BI15)","v":{"$error":"#VALUE!"}}]
[]
[null,null,null,"Value","Label"]
[null,null,50,0,50]
[null,null,{"$f":"E21","v":40},{"$f":"D31/D33","v":5},{"$f":"E20+$B$26","v":40}]
[null,null,{"$f":"E22","v":30},{"$f":"D21","v":5},{"$f":"E21+$B$26","v":30}]
[null,null,20,{"$f":"D22","v":5},20]
["White",null,10,5,10,null,null,null,null,null,null,null,null,null,null,null,"White",null,null,null,null,null,null,"White",null,null,null,null,null,null,"White",null,null,null,null,null,null,"White",null,null,null,null,null,null,"White",null,null,null,null,null,null,"White",null,null,null,null,null,null,"White"]
["Total",50,0,5,0,null,null,null,null,null,null,null,null,null,null,null,"Total",50,null,null,null,null,null,"Total",50,null,null,null,null,null,"Total",50,null,null,null,null,null,"Total",50,null,null,null,null,null,"Total",50,null,null,null,null,null,"Total",50,null,null,null,null,null,"Total",50]
["Increment",-10,-10,5,-10,null,null,null,null,null,null,null,null,null,null,null,"Increment",-10,null,null,null,null,null,"Increment",-10,null,null,null,null,null,"Increment",-10,null,null,null,null,null,"Increment",-10,null,null,null,null,null,"Increment",-10,null,null,null,null,null,"Increment",-10,null,null,null,null,null,"Increment",-10]
["Conversion",{"$f":"100/B25","v":2},-20,5,-20,null,null,null,null,null,null,null,null,null,null,null,"Conversion",{"$f":"100/R25","v":2},null,null,null,null,null,"Conversion",{"$f":"100/Y25","v":2},null,null,null,null,null,"Conversion",{"$f":"100/AF25","v":2},null,null,null,null,null,"Conversion",{"$f":"100/AM25","v":2},null,null,null,null,null,"Conversion",{"$f":"100/AT25","v":2},null,null,null,null,null,"Conversion",{"$f":"100/BA25","v":2},null,null,null,null,null,"Conversion",{"$f":"100/BH25","v":2}]
[null,null,-30,5,-30]
[null,null,-40,5,-40]
[null,null,-50,5,-50]
[null,null,null,50]
[]
[null,null,null,10]
[]
[null,null,null,{"$f":"SUM(D20:D30)","v":50}]

{"sheet":"empresa_ccaa","index":5,"n_rows":220,"n_cols":14,"rows_kept":220,"cut":false,"hidden":false,"merged":[]}
[]
[]
[null,null,null,null,null,null,null,null,null,null,null,null,{"$f":"Dashboard!O3","v":2018}]
[null,null,null,null,null,null,null,null,null,null,null,null,{"$f":"Dashboard!O4","v":"MARZO"}]
[null,null,null,null,null,null,null,null,null,null,"Empresa",{"$f":"L9","v":"iEMPRESA"}]
[]
[]
[]
[null,null,"Facturación, €",null,null,"ASEMPLEO","ASEMPLEO",null,null,null,"Empresa = ","iEMPRESA"]
[null,null,"Dato acumulado a",null,{"$f":"M4","v":"MARZO"},{"$f":"Dashboard!D7","v":2017},{"$f":"Dashboard!E7","v":2018},null,null,"Facturación",{"$f":"F10","v":2017},{"$f":"G10","v":2018}]
[null,null,null,null,null,null,null,"Estructura (%)",null,"Datos acumulados ",null,null,"Estructura (%)","check"]
[null,null,null,null,null,{"$f":"E202","v":810206562.4726851},{"$f":"B202","v":919563117.88785875},{"$f":"G12/G$12","v":1},"TOTAL",null,{"$f":"SUM(K13:K29)","v":0},{"$f":"SUM(L13:L29)","v":0},{"$f":"L12/L$12","v":{"$error":"#DIV/0!"}},{"$f":"L12/K12-1","v":{"$error":"#DIV/0!"}}]
[null,null,null,null,null,73703041.157532871,82079438.086861938,{"$f":"G13/G$12","v":8.925916719603752E-2},"ANDALUCIA",null,null,null,{"$f":"L13/L$12","v":{"$error":"#DIV/0!"}}]
[null,null,null,null,null,43050366.539243318,47002766.641344488,{"$f":"G14/G$12","v":5.1114236453181132E-2},"ARAGON",null,null,null,{"$f":"L14/L$12","v":{"$error":"#DIV/0!"}}]
[null,null,null,null,null,15850859.86531364,18127358.757594503,1.9713011978156725E-2,"ASTURIAS",null,null,null,{"$error":"#DIV/0!"}]
[null,null,null,null,null,2727610.8557856297,2926172.685195691,3.1821335896080809E-3,"BALEARES",null,null,null,{"$error":"#DIV/0!"}]
[null,null,null,null,null,21667923.64012783,23094788.461387537,2.5114957322814203E-2,"CANARIAS",null,null,null,{"$error":"#DIV/0!"}]
[null,null,null,null,null,17936159.870291799,23002530.194749225,2.5014628955088644E-2,"CANTABRIA",null,null,null,{"$error":"#DIV/0!"}]
[null,null,null,null,null,33666537.397980928,39736434.550371997,4.3212296989077241E-2,"CASTILLA-LA MANCHA",null,null,null,{"$error":"#DIV/0!"}]
[null,null,null,null,null,55398421.684780538,61388629.009140022,6.6758472382127884E-2,"CASTILLA Y LEÓN",null,null,null,{"$error":"#DIV/0!"}]
[null,null,null,null,null,200072192.9978247,239769334.29392117,0.2607426609764934,"CATALUÑA",null,null,null,{"$f":"L21/L$12","v":{"$error":"#DIV/0!"}}]
[null,null,null,null,null,59554704.718785971,64506335.705490492,7.0148894024430711E-2,"COMUNIDAD VALENCIANA",null,null,null,{"$error":"#DIV/0!"}]
[null,null,null,null,null,3632274.4514040966,5177191.3496506251,5.6300554567065468E-3,"EXTREMADURA",null,null,null,{"$error":"#DIV/0!"}]
[null,null,null,null,null,40383491.845766649,48058215.389376163,5.2262008397814939E-2,"GALICIA",null,null,null,{"$error":"#DIV/0!"}]
[null,null,null,null,null,130062994.25372514,140826986.69943872,0.15314553613557677,"MADRID",null,null,null,{"$error":"#DIV/0!"}]
[null,null,null,null,null,34701062.196864881,38783674.030841887,4.2176195713377426E-2,"MURCIA",null,null,null,{"$error":"#DIV/0!"}]
[null,null,null,null,null,26394941.844074644,33431799.616374787,3.6356177151998188E-2,"NAVARRA",null,null,null,{"$error":"#DIV/0!"}]
[null,null,null,null,null,44159141.312292814,44816567.855428606,4.873680444945163E-2,"PAIS VASCO",null,null,null,{"$error":"#DIV/0!"}]
[null,null,null,null,null,7244837.8408897454,6834894.5606911071,7.4327628280592114E-3,"RIOJA (LA)",null,null,null,{"$error":"#DIV/0!"}]
[]
["Fuente: Cifras consolidadas del sector. ASEMPLEO ©."]
["Nota de Confidencialidad: Este informe comparativo se genera con los datos propios de la Empresa. "]
[]
[]
[]
[]
[]
[]
[]
[]
[]
[]
[]
[]
[]
[]
[]
[]
[]
[]
[]
[]
[]
[]
[]
[]
[]
[]
[]
[]
[]
[]
[]
[]
[]
[]
[]
[]
[]
[]
[]
[]
[]
[]
[]
[]
[]
[]
[]
[]
[]
[]
[]
[]
[]
[]
[]
[]
[]
[]
[]
[]
[]
[]
[]
[]
[]
[]
[]
[]
[]
[]
[]
[]
[]
[]
[]
[]
[]
[]
[]
[]
[]
[]
[]
[]
[]
[]
[]
[]
[]
[]
[]
[]
[]
[]
[]
[]
[]
[]
[]
[]
[]
[]
[]
[]
[]
[]
[]
[]
[]
[]
[]
[]
[]
[]
[]
[]
[]
[]
[]
[]
[]
[]
[]
[]
[]
[]
[]
[]
[]
[]
[]
[]
[]
[]
[]
[]
[]
[]
[]
[]
[]
[]
[]
[]
[]
[]
[]
[]
[]
[]
[]
[]
[]
[]
[]
[]
[]
[]
[]
[]
[]
[]
[]
[]
["D03: ",null,null,"D03: ",null,null,"D03 : ","Variación Interanual (%)"]
["MES:","ACUMULADO A LA FECHA",null,{"$f":"A198","v":"MES:"},{"$f":"B198","v":"ACUMULADO A LA FECHA"},null,{"$f":"D198","v":"MES:"},"Tasa % i.a."]
[]
[null,"Facturación",null,null,"Facturación",null,null,"Facturación"]
[null,null,null,null,null,null,null,null,"check"]
["TOTAL",919563117.88785875,null,"TOTAL",810206562.4726851,null,"TOTAL",0.13497367274022842,{"$f":"B202/E202-1","v":0.13497367274022842}]
["ANDALUCIA",82079438.086861938,null,"ANDALUCIA",73703041.157532871,null,"ANDALUCIA",0.11365062822069105,{"$f":"B203/E203-1","v":0.11365062822069105}]
["ARAGON",47002766.641344488,null,"ARAGON",43050366.539243318,null,"ARAGON",9.1808744496943762E-2,9.1808744496943762E-2]
["ASTURIAS",18127358.757594503,null,"ASTURIAS",15850859.86531364,null,"ASTURIAS",0.14361989895970972,0.14361989895970972]
["BALEARES",2926172.685195691,null,"BALEARES",2727610.8557856297,null,"BALEARES",7.2796978714498417E-2,7.2796978714498417E-2]
["CANARIAS",23094788.461387537,null,"CANARIAS",21667923.64012783,null,"CANARIAS",6.585147912452638E-2,6.585147912452638E-2]
["CANTABRIA",23002530.194749225,null,"CANTABRIA",17936159.870291799,null,"CANTABRIA",0.28246683577174214,0.28246683577174214]
["CASTILLA-LA MANCHA",39736434.550371997,null,"CASTILLA-LA MANCHA",33666537.397980928,null,"CASTILLA-LA MANCHA",0.18029466709442765,0.18029466709442765]
["CASTILLA Y LEÓN",61388629.009140022,null,"CASTILLA Y LEÓN",55398421.684780538,null,"CASTILLA Y LEÓN",0.1081295665505424,0.1081295665505424]
["CATALUÑA",239769334.29392117,null,"CATALUÑA",200072192.9978247,null,"CATALUÑA",0.19841408594210841,0.19841408594210841]
["COMUNIDAD VALENCIANA",64506335.705490492,null,"COMUNIDAD VALENCIANA",59554704.718785971,null,"COMUNIDAD VALENCIANA",8.3144245447708043E-2,8.3144245447708043E-2]
["EXTREMADURA",5177191.3496506251,null,"EXTREMADURA",3632274.4514040966,null,"EXTREMADURA",0.42533044210063031,0.42533044210063031]
["GALICIA",48058215.389376163,null,"GALICIA",40383491.845766649,null,"GALICIA",0.19004606072503472,0.19004606072503472]
["MADRID",140826986.69943872,null,"MADRID",130062994.25372514,null,"MADRID",8.2759838857125789E-2,8.2759838857125789E-2]
["MURCIA",38783674.030841887,null,"MURCIA",34701062.196864881,null,"MURCIA",0.11765091831528585,0.11765091831528585]
["NAVARRA",33431799.616374787,null,"NAVARRA",26394941.844074644,null,"NAVARRA",0.26659872235633797,0.26659872235633797]
["PAIS VASCO",44816567.855428606,null,"PAIS VASCO",44159141.312292814,null,"PAIS VASCO",1.4887665919191662E-2,1.4887665919191662E-2]
["RIOJA (LA)",6834894.5606911071,null,"RIOJA (LA)",7244837.8408897454,null,"RIOJA (LA)",-5.6584189902074145E-2,{"$f":"B219/E219-1","v":-5.6584189902074145E-2}]
["Ceuta y Melilla",null,null,"Ceuta y Melilla",null,null,"Ceuta y Melilla"]